bitfinex/quotes_ETHUSD_20230117
["timestamp","ask_amount","ask_price","bid_price","bid_amount"]
[1673949338704,0.16783416,1565.1,1565.0,1.468]
[1673949339006,0.16783416,1565.1,1565.0,8.14318395]
[1673949339170,0.16783416,1565.1,1565.0,8.20918395]
[1673949339379,0.16783416,1565.1,1565.0,0.066]
[1673949339380,16.06317823,1565.1,1565.0,0.066]
[1673949339747,16.06317823,1565.1,1564.9,0.10196522]
[1673949339748,16.77551741,1565.1,1564.9,0.10196522]
[1673949339916,3.11662407,1565.0,1564.9,0.10196522]
[1673949340110,16.89616407,1565.0,1564.9,0.10196522]
[1673949340320,17.83850325,1565.0,1564.9,0.10196522]
[1673949340533,21.01225372,1565.0,1564.9,0.10196522]
[1673949340739,20.01225372,1565.0,1564.9,0.10196522]
[1673949341213,20.12886228,1565.0,1564.9,0.10196522]
[1673949344679,21.08130962,1565.0,1564.9,0.09816398]
[1673949344999,21.56080962,1565.0,1564.9,0.09816398]
[1673949345533,20.12886228,1565.0,1564.9,0.09816398]
[1673949346657,21.29139037,1565.0,1564.9,0.09816398]
[1673949347255,21.08130962,1565.0,1564.9,0.09816398]
[1673949348571,21.29154717,1565.0,1564.9,0.09816398]
[1673949350546,22.72008788,1565.0,1564.9,0.09816398]
[1673949350753,22.49008788,1565.0,1564.9,0.09816398]
[1673949352644,21.53764054,1565.0,1564.9,0.09816398]
[1673949352867,25.52082665,1565.0,1564.9,0.09816398]
[1673949353175,22.02082665,1565.0,1564.9,0.09816398]
[1673949353987,21.37448747,1565.0,1564.9,0.09816398]
[1673949354196,22.02082665,1565.0,1564.9,0.09816398]
[1673949356099,29.37451049,1565.0,1564.9,0.09816398]
[1673949356302,26.98482665,1565.0,1564.9,0.09816398]
[1673949356880,32.83265683,1565.0,1564.9,0.09816398]
[1673949357408,29.33265683,1565.0,1564.9,0.09816398]
[1673949358246,28.68631765,1565.0,1564.9,0.09816398]
[1673949358471,29.33265683,1565.0,1564.9,0.09816398]
[1673949361299,23.48604085,1565.0,1564.9,0.09816398]
[1673949363192,25.87572469,1565.0,1564.9,0.09816398]
[1673949364229,25.22938551,1565.0,1564.9,0.09816398]
[1673949364549,25.87572469,1565.0,1564.9,0.09816398]
[1673949364729,23.48604085,1565.0,1564.9,0.09816398]
[1673949368142,23.48604085,1565.0,1564.9,0.09474133]
[1673949369706,22.02204085,1565.0,1564.9,0.09474133]
[1673949372166,24.41172469,1565.0,1564.9,0.09474133]
[1673949373423,29.78148747,1565.0,1564.9,0.09474133]
[1673949374016,23.76538551,1565.0,1564.9,0.09474133]
[1673949374226,24.41172469,1565.0,1564.9,0.09474133]
[1673949374640,29.78148468,1565.0,1564.9,0.09474133]
[1673949375433,27.86854366,1565.0,1564.9,0.09474133]
[1673949375639,29.78178665,1565.0,1564.9,0.09474133]
[1673949376018,29.7817866,1565.0,1564.9,0.09474133]
[1673949376474,27.86854366,1565.0,1564.9,0.09474133]
[1673949378427,25.47885982,1565.0,1564.9,0.09474133]
[1673949378890,28.97885982,1565.0,1564.8,0.00118765]
[1673949379102,0.05773419,1564.5,1564.0,0.74989525]
[1673949379324,5.99303207,1564.1,1564.0,0.74989525]
[1673949379472,25.31053345,1564.1,1564.0,0.74989525]
[1673949379680,27.83083345,1564.1,1564.0,0.74989525]
[1673949379928,30.47137234,1564.1,1564.0,0.74989525]
[1673949380268,24.63146435,1564.1,1564.0,0.74989525]
[1673949380424,23.98512517,1564.1,1564.0,0.74989525]
[1673949381632,23.50615025,1564.1,1564.0,0.74989525]
[1673949382448,27.52697771,1564.1,1564.0,0.74989525]
[1673949382657,27.21934058,1564.1,1564.0,0.74989525]
[1673949383293,23.42671914,1564.1,1564.0,0.44989525]
[1673949383679,9.6858717,1564.1,1564.0,0.44989525]
[1673949383852,3.2924217,1564.1,1564.0,0.44989525]
[1673949384058,3.2264217,1564.1,1564.0,0.44989525]
[1673949384775,16.0133217,1564.1,1564.0,0.44989525]
[1673949384986,21.5926051,1564.1,1564.0,0.44989525]
[1673949385595,21.59204831,1564.1,1564.0,0.44989525]
[1673949385833,21.59204831,1564.1,1563.8,1.0907781]
[1673949385834,25.57708,1563.9,1563.8,1.0907781]
[1673949386055,33.72770407,1563.9,1563.8,1.0907781]
[1673949386207,33.03722261,1563.9,1563.8,1.0907781]
[1673949386426,33.03508237,1563.9,1563.8,1.0907781]
[1673949386794,36.03508237,1563.9,1563.8,1.0907781]
[1673949387152,34.67559564,1563.9,1563.8,1.0907781]
[1673949387420,35.32193482,1563.9,1563.8,1.0907781]
[1673949387811,28.44786482,1563.9,1563.8,1.0907781]
[1673949388231,27.80152564,1563.9,1563.8,1.0907781]
[1673949389676,27.80152564,1563.9,1563.8,0.7007781]
[1673949391484,16.0775371,1563.9,1563.8,0.7007781]
[1673949391691,9.6832671,1563.9,1563.8,0.7007781]
[1673949392119,16.0775371,1563.9,1563.8,0.7007781]
[1673949399426,16.5573371,1563.9,1563.8,0.7007781]
[1673949399653,16.0775371,1563.9,1563.8,0.7007781]
[1673949400854,18.37269081,1563.9,1563.8,0.7007781]
[1673949402273,1.0,1563.8,1563.6,0.0059658]
[1673949402433,16.67119143,1563.7,1563.2,13.49569445]
[1673949402642,0.83040736,1563.7,1563.4,6.39621]
[1673949402866,0.76440736,1563.7,1563.5,0.639621]
[1673949403059,0.10658612,1563.6,1563.5,0.639621]
[1673949403306,0.10658612,1563.6,1563.5,1.64362744]
[1673949403689,0.10658612,1563.6,1563.5,8.03952744]
[1673949403895,0.76440736,1563.7,1563.6,1.0]
[1673949404155,0.76440736,1563.7,1563.6,15.15223274]
[1673949404374,0.76440736,1563.7,1563.6,15.21823274]
[1673949404949,0.76440736,1563.7,1563.6,21.61372274]
[1673949405426,0.76440736,1563.7,1563.6,23.07272274]
[1673949405636,0.76440736,1563.7,1563.6,26.57272274]
[1673949405898,0.04474865,1564.3,1563.7,1.0]
[1673949406130,0.04474865,1564.3,1564.1,1.468]
[1673949407032,0.09267534,1564.2,1564.1,1.468]
[1673949407249,0.09267534,1564.2,1564.0,1.458]
[1673949407837,0.09467534,1564.2,1564.0,1.458]
[1673949408100,0.09267534,1564.2,1564.0,1.7498]
[1673949408834,3.20929941,1564.2,1564.0,1.7498]
[1673949409172,3.20929941,1564.2,1564.0,1.458]
[1673949409782,3.20929941,1564.2,1563.9,1.46]
[1673949411240,9.60234941,1564.2,1563.9,1.46]
[1673949411451,9.66834941,1564.2,1563.9,1.46]
[1673949415995,3.27529941,1564.2,1563.9,1.46]
[1673949416157,3.27529941,1564.2,1563.9,3.69553182]
[1673949416158,3.20929941,1564.2,1563.9,3.69553182]
[1673949417437,4.16180316,1564.2,1563.9,3.69553182]
[1673949418816,4.16180316,1564.2,1563.9,4.69553182]
[1673949418991,4.16180316,1564.2,1563.9,3.69553182]
[1673949419233,3.20929941,1564.2,1563.9,3.69553182]
[1673949419424,0.09267534,1564.2,1564.0,0.36955318]
[1673949419791,0.09267534,1564.2,1564.1,1.468]
[1673949423444,0.09267534,1564.2,1564.1,1.450892]
[1673949427135,0.62616055,1564.2,1564.1,1.450892]
[1673949429376,0.62616055,1564.2,1564.1,7.844342]
[1673949429654,0.62616055,1564.2,1564.1,10.01704652]
[1673949430485,0.62616055,1564.2,1564.1,16.41049652]
[1673949430643,0.62616055,1564.2,1564.1,20.87649652]
[1673949433272,0.62616055,1564.2,1564.1,21.55500665]
[1673949433969,0.62616055,1564.2,1564.1,20.87649652]
[1673949434529,0.62616055,1564.2,1564.1,24.73351081]
[1673949434743,0.62616055,1564.2,1564.1,30.26878902]
[1673949435278,0.00638185,1564.2,1564.1,30.26878902]
[1673949435496,0.00638185,1564.2,1564.1,40.40178902]
[1673949435754,0.00638185,1564.2,1564.1,41.83980187]
[1673949436121,0.08284663,1564.2,1564.1,41.83980187]
[1673949436340,0.08284663,1564.2,1564.1,36.90178902]
[1673949436796,0.04474865,1564.3,1564.1,40.40178902]
[1673949437112,0.04474865,1564.3,1564.2,20.83839727]
[1673949437422,0.04474865,1564.3,1564.2,33.69047727]
[1673949437847,0.04474865,1564.3,1564.2,41.88957727]
[1673949438329,0.10911128,1564.3,1564.2,37.43497617]
[1673949439632,0.10911128,1564.3,1564.2,35.96697617]
[1673949441105,0.10911128,1564.3,1564.2,31.70600396]
[1673949441519,0.10911128,1564.3,1564.2,32.85926987]
[1673949442055,0.10911128,1564.3,1564.2,32.87766585]
[1673949442536,0.10911128,1564.3,1564.2,35.99428992]
[1673949443467,0.10911128,1564.3,1564.2,32.87766585]
[1673949445156,0.02071236,1564.7,1564.2,32.87766585]
[1673949445366,0.02071236,1564.7,1564.4,1.458]
[1673949445618,0.02071236,1564.7,1564.5,6.39181]
[1673949445805,0.02071236,1564.7,1564.5,6.45781]
[1673949446206,0.05556096,1564.6,1564.5,6.45781]
[1673949446461,0.05556096,1564.6,1564.5,9.45781]
[1673949447081,0.02071236,1564.7,1564.5,9.45781]
[1673949448094,0.05556096,1564.6,1564.5,9.45781]
[1673949448302,0.05556096,1564.6,1564.5,12.645258]
[1673949449034,0.02071236,1564.7,1564.5,12.645258]
[1673949450772,0.02071236,1564.7,1564.5,19.037068]
[1673949451155,0.05556096,1564.6,1564.5,19.037068]
[1673949452169,0.02071236,1564.7,1564.5,19.037068]
[1673949452340,0.02071236,1564.7,1564.6,14.6865068]
[1673949452550,0.02071236,1564.7,1564.6,14.7525068]
[1673949453608,0.02071236,1564.7,1564.6,8.3611068]
[1673949453852,0.02071236,1564.7,1564.6,6.4574]
[1673949454020,0.02071236,1564.7,1564.6,0.066]
[1673949454230,0.02071236,1564.7,1564.5,14.107258]
[1673949455135,0.05556096,1564.6,1564.5,14.107258]
[1673949456020,0.02071236,1564.7,1564.5,14.107258]
[1673949456230,0.02071236,1564.7,1564.5,10.91981]
[1673949456919,0.02071236,1564.7,1564.6,4.468]
[1673949457225,0.02071236,1564.7,1564.6,17.2508]
[1673949457435,0.02071236,1564.7,1564.6,17.3168]
[1673949459162,0.07691496,1564.7,1564.6,17.3168]
[1673949459335,0.07691496,1564.7,1564.6,20.58853443]
[1673949461646,0.07691496,1564.7,1564.6,14.19713443]
[1673949461820,0.07691496,1564.7,1564.6,10.9254]
[1673949463921,0.07691496,1564.7,1564.6,9.4574]
[1673949464131,1.23791496,1564.7,1564.6,0.066]
[1673949464339,8.04462383,1564.7,1564.5,0.066]
[1673949464584,5.38115438,1564.6,1564.2,0.066]
[1673949464902,4.90180776,1564.5,1564.1,22.30026]
[1673949465057,0.4797,1564.4,1564.1,22.30026]
[1673949465269,4.61792895,1564.5,1564.1,12.85236]
[1673949465512,6.53848949,1564.5,1564.1,12.85236]
[1673949465730,6.60448949,1564.5,1564.2,3.0]
[1673949465919,6.60448949,1564.5,1564.2,2.99757592]
[1673949467690,5.64878461,1564.5,1564.2,9.39056592]
[1673949468019,5.64878461,1564.5,1564.2,9.45656592]
[1673949468020,3.66222407,1564.5,1564.2,9.45656592]
[1673949468209,3.59622407,1564.5,1564.2,9.45656592]
[1673949468841,3.59622407,1564.5,1564.2,3.06357592]
[1673949469047,0.05427742,1564.4,1564.2,2.99757592]
[1673949471681,0.05427742,1564.4,1564.2,9.39057592]
[1673949471889,0.05427742,1564.4,1564.2,9.45657592]
[1673949472471,0.05627742,1564.4,1564.2,10.70048408]
[1673949472682,0.05427742,1564.4,1564.2,10.70248408]
[1673949475323,0.05427742,1564.4,1564.2,17.09552408]
[1673949477222,0.95570488,1564.5,1564.2,17.09552408]
[1673949477443,1.78560024,1564.5,1564.2,17.09552408]
[1673949477838,0.95570488,1564.5,1564.2,18.25263754]
[1673949478052,0.95570488,1564.5,1564.3,1.82526375]
[1673949478053,1.78559575,1564.5,1564.3,1.82526375]
[1673949478260,1.78559575,1564.5,1564.3,6.39259]
[1673949478514,1.78559575,1564.5,1564.3,6.45859]
[1673949478657,10.5401404,1564.6,1564.3,6.45859]
[1673949479127,1.0753404,1564.6,1564.3,6.45859]
[1673949479341,1.0753404,1564.6,1564.3,12.85122]
[1673949479342,1.0093404,1564.6,1564.3,12.85122]
[1673949479501,1.0093404,1564.6,1564.3,15.43390474]
[1673949480364,1.0093404,1564.6,1564.3,9.04127474]
[1673949480578,3.26795768,1564.6,1564.3,6.46109112]
[1673949480789,2.43809602,1564.6,1564.3,6.46109112]
[1673949482056,1.0093404,1564.6,1564.3,12.85372112]
[1673949482267,0.05363552,1564.6,1564.4,1.468]
[1673949482481,0.05363552,1564.6,1564.4,9.39209]
[1673949482693,0.05363552,1564.6,1564.4,3.066]
[1673949482869,0.05363552,1564.6,1564.4,4.84656159]
[1673949483079,0.05363552,1564.6,1564.4,11.23877159]
[1673949483291,1.03133647,1564.7,1564.4,11.30477159]
[1673949483539,4.14796054,1564.7,1564.4,11.30477159]
[1673949483765,5.58268196,1564.7,1564.4,9.45821]
[1673949483921,4.21992634,1564.7,1564.4,9.45821]
[1673949484126,4.21992634,1564.7,1564.4,15.85043]
[1673949484127,1.03730227,1564.7,1564.4,15.85043]
[1673949486234,3.11662407,1564.6,1564.4,3.066]
[1673949486498,4.48772158,1564.6,1564.3,4.22262588]
[1673949486672,5.9164772,1564.6,1564.3,1.15662588]
[1673949486888,5.9824772,1564.6,1564.3,1.15662588]
[1673949487938,5.9824772,1564.6,1564.3,4.15662588]
[1673949488143,0.05491923,1564.5,1564.3,4.15662588]
[1673949489277,1.84042091,1564.5,1564.3,1.15662588]
[1673949489537,1.01062411,1564.5,1564.3,4.15662588]
[1673949489937,0.05491923,1564.5,1564.3,10.54912588]
[1673949490136,0.05491923,1564.5,1564.3,10.61512588]
[1673949491436,0.05179189,1564.5,1564.3,13.30221123]
[1673949491595,0.05179189,1564.5,1564.3,19.69484123]
[1673949491942,0.05179189,1564.5,1564.3,22.89484123]
[1673949492119,12.43589485,1564.7,1564.3,22.89484123]
[1673949492552,0.95570488,1564.6,1564.3,22.89484123]
[1673949492792,1.7855252,1564.6,1564.4,2.28948412]
[1673949493003,1.7855252,1564.6,1564.4,18.07354412]
[1673949493211,1.7855252,1564.6,1564.4,18.13954412]
[1673949495109,0.054398,1564.5,1564.4,18.13954412]
[1673949495428,0.054398,1564.5,1564.4,11.74735412]
[1673949497316,0.054398,1564.5,1564.4,18.13957412]
[1673949498142,1.04838304,1564.7,1564.4,18.13957412]
[1673949498461,3.24149116,1564.7,1564.4,18.13957412]
[1673949498670,2.41113866,1564.7,1564.4,18.13957412]
[1673949498845,1.78610018,1564.6,1564.4,18.13957412]
[1673949499055,1.84113991,1564.6,1564.4,18.13957412]
[1673949499309,1.01074461,1564.6,1564.4,18.13957412]
[1673949500899,1.01274461,1564.6,1564.4,18.13757412]
[1673949501060,1.01074461,1564.6,1564.4,18.13957412]
[1673949502364,2.43950023,1564.6,1564.4,18.13957412]
[1673949502538,2.43950023,1564.6,1564.5,1.81395741]
[1673949502752,1.84182892,1564.6,1564.5,12.78362]
[1673949502960,1.84182892,1564.6,1564.5,12.84962]
[1673949503892,1.84182892,1564.6,1564.5,19.24143]
[1673949504996,0.05503973,1564.6,1564.5,22.41671683]
[1673949505150,0.05503973,1564.6,1564.5,28.03515375]
[1673949505360,0.05503973,1564.6,1564.5,30.6921689]
[1673949505573,0.05503973,1564.6,1564.5,31.85060582]
[1673949506119,0.02667816,1564.7,1564.5,31.85060582]
[1673949506328,0.02667816,1564.7,1564.6,5.22068573]
[1673949506677,0.02667816,1564.7,1564.6,24.46088573]
[1673949507010,0.02667816,1564.7,1564.6,29.58724252]
[1673949507149,0.08235954,1564.7,1564.6,29.58724252]
[1673949508985,0.08235954,1564.7,1564.6,28.4288056]
[1673949509831,0.08235954,1564.7,1564.6,29.61519891]
[1673949510830,0.08235954,1564.7,1564.6,28.4288056]
[1673949512073,0.08235954,1564.7,1564.6,29.61481516]
[1673949512560,0.08004338,1564.7,1564.6,29.61481516]
[1673949512878,0.08004338,1564.7,1564.6,28.4288056]
[1673949513884,0.08004338,1564.7,1564.6,29.61448964]
[1673949514096,0.08004338,1564.7,1564.6,32.73111371]
[1673949514411,1.00615115,1565.0,1564.7,0.08004963]
[1673949514412,0.05044627,1565.0,1564.7,0.08004963]
[1673949514643,0.05044627,1565.0,1564.9,1.468]
[1673949514860,0.05044627,1565.0,1564.9,21.63854]
[1673949515053,0.05044627,1565.0,1564.9,21.70454]
[1673949515269,0.05044627,1565.0,1564.9,24.70454]
[1673949516305,0.05044627,1565.0,1564.9,23.70454]
[1673949516517,0.05044627,1565.0,1564.9,26.714053]
[1673949518936,0.05044627,1565.0,1564.9,29.914053]
[1673949519924,0.05044627,1565.0,1564.9,33.03067707]
[1673949520575,0.05044627,1565.0,1564.9,34.49067707]
[1673949521873,0.07914733,1565.3,1565.0,1.0]
[1673949522191,0.07914733,1565.3,1565.2,1.462]
[1673949522381,0.07914733,1565.3,1565.2,20.62885]
[1673949522554,0.07914733,1565.3,1565.2,23.69485]
[1673949523220,0.07914733,1565.3,1565.2,23.71323395]
[1673949524819,0.07914733,1565.3,1565.2,23.71123395]
[1673949525027,0.07914733,1565.3,1565.2,27.55449335]
[1673949530939,0.07914733,1565.3,1565.2,30.67111742]
[1673949531316,0.07914733,1565.3,1565.2,27.55449335]
[1673949534867,0.07914733,1565.3,1565.2,30.67111742]
[1673949535010,7.33e-06,1565.3,1565.2,34.17111742]
[1673949535487,7.33e-06,1565.3,1565.2,30.67111742]
[1673949537872,7.33e-06,1565.3,1565.2,27.55449335]
[1673949538094,7.33e-06,1565.3,1565.2,26.09249335]
[1673949538712,7.33e-06,1565.3,1565.2,30.67711742]
[1673949539143,7.33e-06,1565.3,1565.2,27.56049335]
[1673949539336,7.33e-06,1565.3,1565.2,22.23285]
[1673949551129,7.33e-06,1565.3,1565.2,22.24873863]
[1673949553016,7.33e-06,1565.3,1565.2,23.2319612]
[1673949554191,7.33e-06,1565.3,1565.2,24.56234062]
[1673949556402,7.33e-06,1565.3,1565.2,24.55845607]
[1673949556573,7.33e-06,1565.3,1565.2,28.71601605]
[1673949556785,7.33e-06,1565.3,1565.2,32.78842385]
[1673949559876,7.33e-06,1565.3,1565.2,34.25642385]
[1673949560194,0.07914733,1565.5,1565.3,1.002]
[1673949560383,0.07914733,1565.5,1565.4,34.09111529]
[1673949560606,0.07914733,1565.5,1565.4,35.51362479]
[1673949560810,0.07914733,1565.5,1565.4,38.51362479]
[1673949561402,0.07914733,1565.5,1565.4,42.67015244]
[1673949562144,0.07914733,1565.5,1565.4,41.23451371]
[1673949563236,0.07914733,1565.5,1565.4,41.24968738]
[1673949564128,1.51450955,1565.8,1565.4,42.68532611]
[1673949564389,1.51450955,1565.8,1565.7,1.468]
[1673949564781,2.10651063,1565.8,1565.7,23.62873]
[1673949565034,2.10651063,1565.8,1565.7,23.69473]
[1673949565186,1.03530955,1565.8,1565.7,23.69473]
[1673949565394,0.07960467,1565.8,1565.7,22.22673]
[1673949565603,0.07960467,1565.8,1565.7,28.20627624]
[1673949568796,0.07960467,1565.8,1565.7,25.08965217]
[1673949569006,0.07960467,1565.8,1565.7,22.22673]
[1673949571965,1.24060467,1565.8,1565.7,0.066]
[1673949572138,1.24060467,1565.8,1565.6,12.84032]
[1673949572139,4.73489092,1565.8,1565.6,12.84032]
[1673949572347,0.4793,1565.7,1565.6,12.84032]
[1673949573226,2.02641544,1565.7,1565.6,12.84032]
[1673949573379,2.02641544,1565.7,1565.6,15.84032]
[1673949574433,1.54711544,1565.7,1565.6,15.84032]
[1673949576379,1.54711544,1565.7,1565.6,9.45309]
[1673949580371,2.97587106,1565.7,1565.6,9.45309]
[1673949581157,2.02016618,1565.7,1565.6,9.45309]
[1673949581636,2.82004374,1565.7,1565.6,9.45309]
[1673949581941,5.23435181,1565.7,1565.6,0.066]
[1673949582164,5.30035181,1565.7,1565.5,6.45346]
[1673949582312,2.98017614,1565.6,1565.5,6.45346]
[1673949582523,2.02466991,1565.6,1565.5,6.45346]
[1673949582788,2.69803103,1565.6,1565.5,6.45346]
[1673949584045,4.15203103,1565.6,1565.5,0.066]
[1673949584238,5.5868859,1565.6,1565.4,9.65399]
[1673949584423,5.06147534,1565.6,1565.4,16.04183]
[1673949585570,1.54734989,1565.5,1565.4,16.04183]
[1673949585781,1.54734989,1565.5,1565.4,19.04183]
[1673949585991,1.54734989,1565.5,1565.4,12.65384]
[1673949586257,2.11267693,1565.5,1565.4,12.65384]
[1673949586622,2.11267693,1565.5,1565.4,6.266]
[1673949588585,2.11267693,1565.5,1565.4,6.26259288]
[1673949590904,1.54734989,1565.5,1565.4,12.65073288]
[1673949591199,2.93411422,1565.6,1565.4,12.65073288]
[1673949591351,2.86811422,1565.6,1565.4,12.65073288]
[1673949592044,2.86811422,1565.6,1565.4,19.03887288]
[1673949592201,1.54637721,1565.5,1565.4,19.03887288]
[1673949592969,0.95555487,1565.5,1565.4,19.03887288]
[1673949593517,0.95555487,1565.6,1565.4,27.96973617]
[1673949593666,2.38881422,1565.7,1565.4,27.96973617]
[1673949594042,0.95555487,1565.6,1565.4,27.96973617]
[1673949594931,0.95555487,1565.6,1565.4,12.65073288]
[1673949595159,1.54633981,1565.6,1565.4,12.65073288]
[1673949595922,0.95555487,1565.6,1565.4,12.65073288]
[1673949596972,2.38881422,1565.6,1565.4,6.26259288]
[1673949597202,1.54636916,1565.5,1565.4,6.26259288]
[1673949597427,0.95555487,1565.5,1565.4,6.26259288]
[1673949597994,1.19443629,1565.5,1565.4,3.26259288]
[1673949598200,1.78525058,1565.5,1565.4,3.19659288]
[1673949601000,3.21850993,1565.5,1565.4,3.19659288]
[1673949602045,2.26295506,1565.5,1565.4,3.19659288]
[1673949603070,2.6276698,1565.5,1565.4,3.19659288]
[1673949603300,3.21848409,1565.5,1565.4,3.19659288]
[1673949603705,0.23888142,1565.5,1565.4,3.19659288]
[1673949603922,0.45361496,1565.5,1565.4,3.19659288]
[1673949604124,0.45361496,1565.5,1565.4,25.36089288]
[1673949604335,0.45361496,1565.5,1565.4,6.26259288]
[1673949604550,1.40914399,1565.5,1565.4,3.26259288]
[1673949604740,1.40914399,1565.5,1565.4,3.19659288]
[1673949604981,1.99975929,1565.5,1565.4,3.19659288]
[1673949606544,0.45361496,1565.5,1565.4,3.19659288]
[1673949606755,2.09802772,1565.5,1565.4,3.19659288]
[1673949606950,0.45361496,1565.5,1565.4,3.19659288]
[1673949607642,1.40914399,1565.5,1565.4,3.19659288]
[1673949607981,2.09814474,1565.5,1565.4,3.19659288]
[1673949608451,0.45361496,1565.5,1565.4,3.19659288]
[1673949608669,0.45361496,1565.5,1565.4,9.58473288]
[1673949608879,0.45361496,1565.5,1565.4,9.65073288]
[1673949610025,0.45361496,1565.5,1565.4,28.56474126]
[1673949610248,0.45361496,1565.5,1565.4,29.82667708]
[1673949610830,0.45121486,1565.5,1565.4,29.82667708]
[1673949611077,0.45121486,1565.5,1565.4,30.78320473]
[1673949614018,0.45121486,1565.5,1565.4,28.56474126]
[1673949614200,0.45121486,1565.5,1565.4,27.5842879]
[1673949614412,0.45121486,1565.5,1565.4,26.32200597]
[1673949614709,0.45121486,1565.5,1565.4,27.58426875]
[1673949615128,0.45121486,1565.5,1565.4,28.5407964]
[1673949618514,0.95552903,1565.7,1565.4,27.58426875]
[1673949618855,1.64492244,1565.7,1565.6,6.38732]
[1673949619021,1.64492244,1565.7,1565.6,6.45332]
[1673949619435,9.3707337,1565.8,1565.6,6.45626773]
[1673949619649,9.3707337,1565.8,1565.6,12.84358773]
[1673949619912,1.1011337,1565.8,1565.6,12.84358773]
[1673949620130,1.0351337,1565.8,1565.6,15.0666935]
[1673949620860,2.46839305,1565.8,1565.6,6.45332]
[1673949621016,1.64484742,1565.7,1565.6,6.45332]
[1673949621226,1.0351337,1565.8,1565.6,6.45332]
[1673949623245,0.95552903,1565.7,1565.6,0.066]
[1673949623450,1.74821461,1565.7,1565.5,9.45347]
[1673949623677,0.95552903,1565.7,1565.5,9.45347]
[1673949624135,1.64469958,1565.7,1565.5,9.45347]
[1673949624316,1.64469958,1565.7,1565.5,9.45147]
[1673949624317,1.64669958,1565.7,1565.5,9.45147]
[1673949624545,1.64469958,1565.7,1565.5,9.45347]
[1673949625136,2.12399958,1565.7,1565.5,9.45347]
[1673949625352,2.12399958,1565.7,1565.5,0.066]
[1673949625353,1.64474274,1565.6,1565.5,0.066]
[1673949625593,1.64474274,1565.6,1565.4,3.19659288]
[1673949626085,2.12404274,1565.6,1565.4,3.19659288]
[1673949626297,1.43482903,1565.6,1565.4,3.19659288]
[1673949627366,0.4793,1565.6,1565.4,3.19659288]
[1673949627809,12.80137881,1565.7,1565.4,3.19659288]
[1673949630745,1.64503469,1565.6,1565.4,3.19659288]
[1673949632572,2.99412314,1565.6,1565.4,3.19659288]
[1673949632862,2.30461748,1565.6,1565.4,3.19659288]
[1673949634491,3.30461748,1565.6,1565.4,3.19659288]
[1673949634764,1.64516175,1565.5,1565.4,3.19396704]
[1673949635334,4.0804211,1565.5,1565.4,3.19396704]
[1673949635670,4.55758342,1565.5,1565.4,3.19396704]
[1673949637440,4.55958342,1565.5,1565.4,3.19396704]
[1673949637805,4.55758342,1565.5,1565.4,3.19396704]
[1673949642794,3.12432407,1565.5,1565.4,3.19396704]
[1673949645414,4.59232407,1565.5,1565.4,3.19396704]
[1673949645588,20.48440814,1565.5,1565.4,3.19396704]
[1673949645741,30.586475,1565.5,1565.4,3.19396704]
[1673949646068,36.43215812,1565.5,1565.4,3.19396704]
[1673949646429,35.43215812,1565.5,1565.4,3.19396704]
[1673949646804,30.0642382,1565.5,1565.4,3.19396704]
[1673949647684,35.43229204,1565.5,1565.4,3.19396704]
[1673949647841,35.43229204,1565.5,1565.4,0.65755499]
[1673949648048,31.97608974,1565.5,1565.4,0.65755499]
[1673949648259,35.43225272,1565.5,1565.4,0.65755499]
[1673949648889,31.97609046,1565.5,1565.4,0.65755499]
[1673949649103,31.97553401,1565.5,1565.4,0.65755499]
[1673949649786,28.11900712,1565.5,1565.4,0.65755499]
[1673949650003,23.16458041,1565.5,1565.4,0.65755499]
[1673949650310,4.40407353,1565.5,1565.4,0.65755499]
[1673949650523,1.64510901,1565.5,1565.4,0.65755499]
[1673949651556,8.03283901,1565.5,1565.4,0.65755499]
[1673949651764,8.09883901,1565.5,1565.4,0.65755499]
[1673949651985,9.5321423,1565.5,1565.4,0.65755499]
[1673949652144,13.12103118,1565.5,1565.4,0.65755499]
[1673949652356,14.33483338,1565.5,1565.4,0.65755499]
[1673949653787,20.72256338,1565.5,1565.4,0.65755499]
[1673949653935,19.76708709,1565.5,1565.4,0.65755499]
[1673949655352,29.27144116,1565.5,1565.4,0.65755499]
[1673949658370,32.13796057,1565.5,1565.4,0.65755499]
[1673949659456,30.22666476,1565.5,1565.4,0.65755499]
[1673949660768,35.59474563,1565.5,1565.4,0.65755499]
[1673949661320,35.59470459,1565.5,1565.4,0.65755499]
[1673949661540,30.22666476,1565.5,1565.4,0.65755499]
[1673949662395,32.13829169,1565.5,1565.4,0.65755499]
[1673949662762,35.59468418,1565.5,1565.4,0.65755499]
[1673949663015,35.59468418,1565.5,1565.4,0.08557402]
[1673949663973,41.03979933,1565.5,1565.4,0.08557402]
[1673949664131,41.51909933,1565.5,1565.4,0.08557402]
[1673949664571,38.64269133,1565.5,1565.4,0.08557402]
[1673949664919,41.51909933,1565.5,1565.4,0.08557402]
[1673949665297,38.64269133,1565.5,1565.4,0.08557402]
[1673949665488,41.51909933,1565.5,1565.4,0.08557402]
[1673949666540,38.64269133,1565.5,1565.4,0.08557402]
[1673949667209,41.51909933,1565.5,1565.4,0.08557402]
[1673949668325,38.64269133,1565.5,1565.4,0.08557402]
[1673949668802,41.51909933,1565.5,1565.4,0.00827447]
[1673949672918,37.55056529,1565.5,1565.4,0.00827447]
[1673949673136,34.67415729,1565.5,1565.4,0.00827447]
[1673949674893,37.55056529,1565.5,1565.4,0.00827447]
[1673949676140,34.67415729,1565.5,1565.4,0.00827447]
[1673949678024,34.67415729,1565.5,1565.4,0.00121758]
[1673949678771,37.55056529,1565.5,1565.4,0.00121758]
[1673949678986,38.02986529,1565.5,1565.4,0.00121758]
[1673949679702,41.51986535,1565.5,1565.4,0.00121758]
[1673949680293,38.02986529,1565.5,1565.4,0.00121758]
[1673949680436,35.15345729,1565.5,1565.4,0.00121758]
[1673949681292,38.02986529,1565.5,1565.4,0.00121758]
[1673949684229,0.00078242,1565.3,1564.9,3.0]
[1673949684432,0.95631933,1565.1,1564.9,3.0]
[1673949684645,8.03540205,1565.1,1564.9,3.0]
[1673949684967,7.41176933,1565.1,1564.9,3.0]
[1673949690473,7.41176933,1565.1,1564.9,6.2]
[1673949690709,0.95631933,1565.0,1564.9,6.266]
[1673949691231,1.51408759,1565.0,1564.9,6.266]
[1673949693395,2.94856659,1565.0,1564.9,6.266]
[1673949693580,1.51408759,1565.0,1564.9,6.266]
[1673949694010,2.94856659,1565.0,1564.9,6.266]
[1673949694263,1.51408759,1565.0,1564.9,6.266]
[1673949694745,2.94856659,1565.0,1564.9,3.266]
[1673949694954,2.94856659,1565.0,1564.9,3.2]
[1673949696739,1.99224726,1565.0,1564.9,3.2]
[1673949698154,1.51525763,1565.0,1564.9,3.2]
[1673949699106,2.94973663,1565.0,1564.9,3.2]
[1673949700747,1.99224726,1565.0,1564.9,3.2]
[1673949702576,2.95001285,1565.0,1564.9,3.2]
[1673949703606,1.99224726,1565.0,1564.9,3.2]
[1673949707718,1.99224726,1565.0,1564.9,3.19759016]